bitfinex/quotes_ETHUSD_20260108
["timestamp","ask_amount","ask_price","bid_price","bid_amount"]
[1767889493538,0.09668063,3099.5,3098.8,1.97e-06]
[1767889494416,0.09668063,3099.3,3098.8,1.97e-06]
[1767889495120,0.09668063,3099.1,3098.8,1.97e-06]
[1767889495313,0.76134196,3099.1,3098.8,1.97e-06]
[1767889496114,0.76134196,3099.1,3098.1,3.22776944]
[1767889496325,0.76134196,3099.1,3098.2,0.0322768]
[1767889496521,0.76134196,3099.1,3098.3,3.2275142]
[1767889497087,0.09668063,3099.3,3098.4,4.24885016]
[1767889497346,6.45182102,3099.9,3098.6,0.9891944]
[1767889497549,0.09668063,3099.8,3098.6,0.9891944]
[1767889498534,0.09668063,3099.4,3098.5,0.846]
[1767889499245,3.32316198,3099.4,3098.5,4.07333658]
[1767889499447,3.32316198,3099.4,3098.5,4.57958968]
[1767889499748,3.32316198,3099.4,3098.5,3.73358968]
[1767889500249,0.09668063,3099.4,3098.5,4.72278408]
[1767889500450,3.32314849,3099.4,3098.5,4.72278408]
[1767889500618,0.09668063,3099.2,3098.3,0.846]
[1767889501018,0.09668063,3099.2,3098.3,4.07352394]
[1767889501251,3.32335322,3099.2,3098.3,4.07352394]
[1767889501847,0.09668063,3099.2,3098.3,7.30110035]
[1767889502046,0.09668063,3099.4,3098.4,1.02146912]
[1767889502347,3.32295769,3099.6,3098.6,0.9891944]
[1767889502526,6.54923475,3099.6,3098.6,0.9891944]
[1767889502727,3.32295769,3099.6,3098.6,0.9891944]
[1767889503031,3.32295769,3099.6,3098.7,0.03227159]
[1767889503219,3.32295769,3099.6,3098.7,3.25940074]
[1767889503541,3.98752345,3099.6,3098.7,3.25940074]
[1767889503937,3.98752345,3099.6,3098.7,3.22713534]
[1767889504135,0.09668063,3099.8,3098.9,0.96507769]
[1767889504452,0.09668063,3099.8,3099.0,0.96507769]
[1767889504654,0.03229452,3099.7,3099.0,0.96507769]
[1767889504886,0.002,3100.1,3099.0,0.96507769]
[1767889504887,3.22771828,3100.1,3099.0,0.99029427]
[1767889505165,3.32291938,3099.6,3098.8,0.846]
[1767889505332,0.09668063,3099.4,3098.8,0.846]
[1767889505781,0.09668063,3099.2,3098.8,0.846]
[1767889506056,0.09668063,3099.2,3098.5,1.67825695]
[1767889506230,0.09668063,3099.2,3098.5,0.846]
[1767889506231,0.09668063,3099.0,3098.5,0.846]
[1767889506437,0.09668063,3098.8,3098.1,0.846]
[1767889506662,0.09668063,3098.6,3097.7,3.22813084]
[1767889506836,0.09668063,3098.7,3097.6,1.02257732]
[1767889507039,0.09668063,3098.7,3098.0,3.22780215]
[1767889507246,0.09668063,3099.0,3098.2,4.21797485]
[1767889507457,0.09668063,3098.8,3098.2,4.21797485]
[1767889507857,0.09668063,3098.3,3097.0,0.99029427]
[1767889508033,0.09668063,3098.5,3096.8,7.07904462]
[1767889508034,0.09668063,3098.5,3097.8,3.22805263]
[1767889508377,0.09668063,3098.5,3096.8,3.22907328]
[1767889508378,0.09668063,3098.1,3097.5,0.99029427]
[1767889508666,0.09668063,3097.9,3097.1,4.07473412]
[1767889508964,0.09668063,3097.9,3097.2,1.25347341]
[1767889509161,0.09668063,3098.1,3097.4,0.99029427]
[1767889509331,3.32435522,3098.3,3097.3,6.45723694]
[1767889509332,0.09668063,3098.3,3097.3,6.45723694]
[1767889509531,0.09668063,3098.1,3097.3,6.45723694]
[1767889509835,0.99896189,3098.1,3097.8,0.001]
[1767889510165,1.43128401,3098.1,3097.3,3.22861847]
[1767889510367,0.99896189,3097.9,3097.2,1.25347341]
[1767889510661,0.99896189,3097.9,3097.2,0.846]
[1767889510859,0.09668063,3097.7,3097.1,0.99029427]
[1767889511063,0.09668063,3097.7,3097.1,0.846]
[1767889511423,3.32492284,3097.7,3096.8,4.21934646]
[1767889511628,0.09668063,3097.5,3096.8,5.06534646]
[1767889511828,0.09668063,3097.5,3096.9,0.50653465]
[1767889512074,0.09668063,3097.5,3096.8,0.846]
[1767889512277,0.09668063,3097.3,3096.8,0.846]
[1767889512478,0.09668063,3097.1,3096.2,0.99029427]
[1767889512650,0.09668063,3097.5,3096.2,0.99029427]
[1767889512651,0.09668063,3097.5,3096.3,1.02259088]
[1767889512848,0.09668063,3097.3,3096.4,0.18685909]
[1767889513376,0.09668063,3097.3,3096.5,6.49119972]
[1767889513576,0.09668063,3097.3,3096.4,3.41637421]
[1767889513752,0.09668063,3097.1,3096.4,3.41637421]
[1767889514947,0.09668063,3097.1,3096.4,6.64593111]
[1767889515156,0.09668063,3097.3,3096.5,0.76362254]
[1767889515385,0.09668063,3097.5,3096.7,0.99029427]
[1767889515552,0.09668063,3097.8,3096.8,1.02258566]
[1767889515867,0.09668063,3097.8,3096.8,0.99029427]
[1767889516075,0.09668063,3097.8,3096.9,0.18362943]
[1767889516747,0.09668063,3097.2,3096.5,0.76362254]
[1767889516946,0.09668063,3097.1,3096.4,3.41638241]
[1767889517566,0.09668063,3096.9,3096.4,0.18685909]
[1767889517853,0.09668063,3096.9,3096.1,4.22013671]
[1767889518053,0.09668063,3096.9,3096.1,0.99029427]
[1767889518680,0.09668063,3096.7,3096.1,4.22014893]
[1767889518885,0.09668063,3096.7,3096.2,3.22974426]
[1767889519067,0.09668063,3096.7,3096.2,3.97474351]
[1767889519473,0.09668063,3096.7,3096.2,0.74499925]
[1767889519983,0.09668063,3096.7,3096.1,0.99029427]
[1767889520188,0.09668063,3096.5,3095.7,4.22055655]
[1767889520362,0.09668063,3096.5,3095.3,3.85]
[1767889520363,0.09668063,3096.1,3095.3,0.99029427]
[1767889520571,0.09668063,3096.0,3095.3,0.99029427]
[1767889520781,0.09668063,3095.8,3095.2,0.846]
[1767889520952,0.09468064,3095.8,3095.2,1.25379249]
[1767889521366,0.09668063,3096.3,3095.2,1.25379249]
[1767889521572,0.09668063,3096.0,3095.3,3.2306779]
[1767889521974,0.09668063,3096.5,3095.4,0.99029427]
[1767889522279,0.09668063,3096.3,3095.4,0.99029427]
[1767889522467,0.09668063,3096.3,3095.4,1.02260027]
[1767889522672,0.09668063,3096.3,3095.4,0.99029427]
[1767889522859,0.09668063,3096.5,3095.5,1.7677669]
[1767889523067,0.09668063,3096.9,3095.6,0.99029427]
[1767889523259,0.09668063,3096.7,3095.8,0.99029427]
[1767889523656,0.09668063,3096.9,3095.9,0.03230077]
[1767889523981,0.09668063,3096.9,3096.0,6.45994832]
[1767889524174,0.09668063,3096.9,3096.1,0.74502426]
[1767889524555,0.09668063,3096.9,3096.1,0.77731981]
[1767889524884,0.09668063,3096.9,3096.1,0.74502426]
[1767889525792,0.09668063,3097.0,3096.1,0.74502426]
[1767889526174,0.09668063,3097.4,3096.3,0.99029427]
[1767889526490,0.09668063,3097.2,3096.5,0.99029427]
[1767889526660,0.09668063,3097.2,3096.4,0.82958253]
[1767889527459,0.09668063,3097.0,3096.4,0.82958253]
[1767889527675,0.09668063,3096.8,3096.2,0.846]
[1767889528090,0.09668063,3097.2,3096.3,6.4593224]
[1767889528279,0.09668063,3097.4,3096.3,6.4593224]
[1767889528460,0.09668063,3097.2,3096.3,7.44961667]
[1767889528863,0.09668063,3097.2,3096.3,4.21995547]
[1767889529159,0.09668063,3097.0,3096.4,0.82956991]
[1767889529486,0.09668063,3097.4,3096.3,0.99029427]
[1767889529860,0.09668063,3097.2,3096.3,0.99029427]
[1767889530057,3.32542102,3097.2,3096.3,4.21988734]
[1767889530872,3.32541184,3097.2,3096.2,4.07569606]
[1767889531023,0.09668063,3097.0,3095.9,0.99029427]
[1767889531185,0.09668063,3097.0,3096.0,0.846]
[1767889531382,0.09668063,3096.8,3096.1,0.18362943]
[1767889531600,0.09668063,3096.8,3096.2,3.2297343]
[1767889531805,0.09668063,3096.8,3096.3,3.22962657]
[1767889532088,0.09468064,3096.8,3096.2,3.22976551]
[1767889532290,0.09468064,3096.8,3096.1,0.18362943]
[1767889532496,3.32382697,3096.8,3095.9,0.99029427]
[1767889532693,0.09668063,3096.6,3095.9,5.06729589]
[1767889533083,0.09668063,3096.6,3095.9,1.83729427]
[1767889533284,0.09468064,3096.6,3095.9,1.83729427]
[1767889533587,0.09468064,3096.6,3096.0,3.22992424]
[1767889534882,0.09668063,3097.4,3096.1,0.96335364]
[1767889535082,0.09668063,3097.8,3096.4,0.93105495]
[1767889535326,0.91557232,3099.0,3096.8,0.93105495]
[1767889535493,0.002,3098.3,3097.0,0.93105495]
[1767889535699,0.002,3098.3,3097.2,0.93105495]
[1767889536190,0.002,3098.3,3097.4,0.93105495]
[1767889537420,0.09668063,3098.2,3097.1,4.54318337]
[1767889537594,0.09668063,3098.2,3097.2,3.22867597]
[1767889538335,0.09668063,3098.0,3097.2,6.45739868]
[1767889538618,0.09668063,3098.0,3097.2,7.24298801]
[1767889538794,0.09668063,3098.0,3097.3,0.93105495]
[1767889538997,0.09668063,3098.2,3097.3,0.93105495]
[1767889539298,3.32629722,3098.3,3097.3,0.93105495]
[1767889539617,0.09668063,3098.1,3097.3,0.93105495]
[1767889539805,0.09668063,3098.1,3097.3,1.55693094]
[1767889540336,0.09668063,3098.1,3097.4,3.22851423]
[1767889540732,0.09668063,3098.1,3097.3,1.55693094]
[1767889541024,6.55236249,3098.1,3096.9,0.93105495]
[1767889541225,6.55236249,3098.1,3097.1,3.22879675]
[1767889541226,0.09668063,3097.8,3097.1,3.22879675]
[1767889542206,0.09668063,3097.8,3097.0,0.846]
[1767889542520,0.09668063,3097.8,3097.1,3.22875872]
[1767889542824,0.02653728,3098.1,3097.1,6.45758568]
[1767889542990,0.09868063,3098.3,3097.1,6.45758568]
[1767889542991,0.09668063,3098.2,3097.3,0.93105495]
[1767889543322,0.09868063,3098.3,3097.3,0.93105495]
[1767889543691,0.09868063,3098.3,3097.3,4.78105495]
[1767889543891,3.32629467,3098.3,3097.3,4.78105495]
[1767889544093,3.32629467,3098.3,3097.4,0.55114135]
[1767889544405,0.09868063,3098.3,3097.4,0.55114135]
[1767889544599,3.32627565,3098.3,3097.4,3.77963389]
[1767889544906,0.09868063,3098.3,3097.4,4.71068884]
[1767889545291,0.002,3098.3,3097.4,4.71068884]
[1767889545610,0.09868063,3098.3,3097.5,0.85606888]
[1767889545795,0.09868063,3098.3,3097.5,1.78712383]
[1767889546005,3.3262759,3098.3,3097.5,1.78712383]
[1767889547022,3.3262759,3098.3,3097.5,0.85606888]
[1767889547336,3.3262759,3098.3,3097.4,0.55114135]
[1767889547337,0.09668063,3098.1,3097.4,0.55114135]
[1767889547496,1.01225295,3098.1,3097.4,0.55114135]
[1767889547819,1.01225295,3098.1,3097.4,3.7796017]
[1767889548195,0.91557232,3098.1,3097.5,3.22838536]
[1767889548415,0.09868063,3098.3,3097.5,3.26066946]
[1767889548626,0.002,3098.3,3097.6,0.93105495]
[1767889548828,0.002,3098.3,3097.8,0.93105495]
[1767889548995,0.002,3098.0,3097.8,0.93105495]
[1767889549193,0.002,3098.3,3097.8,0.93105495]
[1767889549417,0.002,3098.3,3098.0,0.93105495]
[1767889550488,3.32364492,3098.9,3098.0,0.93105495]
[1767889551728,3.32336995,3099.2,3098.1,0.93105495]
[1767889551899,0.09668063,3099.0,3098.0,0.846]
[1767889552098,0.09668063,3098.8,3098.0,0.846]
[1767889552299,0.09668063,3098.8,3098.0,4.68675716]
[1767889552718,0.09668063,3098.8,3098.0,1.45887565]
[1767889553353,0.09668063,3098.6,3097.7,3.22814838]
[1767889553621,0.09668063,3098.6,3097.7,3.22818132]
[1767889553806,0.09668063,3098.6,3097.7,7.38743783]
[1767889554630,3.32394556,3098.6,3097.7,4.15923627]
[1767889554924,3.32394556,3098.6,3097.7,5.45351717]
[1767889555425,3.32394556,3098.6,3097.7,9.30351717]
[1767889555848,6.55121049,3098.6,3097.7,6.07533585]
[1767889556011,0.09668063,3098.4,3097.7,5.1442809]
[1767889556203,0.09668063,3098.4,3097.7,1.2942809]
[1767889556733,0.09668063,3098.4,3097.7,4.52242793]
[1767889557338,0.09668063,3098.4,3097.7,1.2942809]
[1767889557639,0.09668063,3098.4,3097.6,0.846]
[1767889557828,3.22757641,3098.3,3097.6,0.846]
[1767889558330,3.32420114,3098.4,3097.6,0.846]
[1767889558633,3.32420114,3098.4,3097.5,7.07835703]
[1767889558634,0.09668063,3098.0,3097.1,0.93105495]
[1767889558850,0.09468064,3098.0,3097.1,5.00586846]
[1767889559131,0.09468064,3098.0,3097.2,3.22866541]
[1767889559301,0.09468064,3098.0,3097.3,3.2286155]
[1767889559724,0.09468064,3098.0,3097.2,3.22868567]
[1767889560327,0.09668063,3097.9,3097.1,1.34981578]
[1767889560534,1.01225295,3098.2,3097.2,0.45786435]
[1767889560749,0.09668063,3098.4,3097.4,0.93105495]
[1767889560947,3.32337248,3099.2,3097.8,0.93105495]
[1767889561110,3.32337248,3099.2,3098.0,0.93105495]
[1767889561449,6.55006307,3099.2,3098.0,0.93105495]
[1767889561745,0.66467437,3099.2,3098.1,1.10876045]
[1767889561949,0.09668063,3099.1,3098.1,1.10876045]
[1767889562153,0.09668063,3099.2,3098.2,7.38641611]
[1767889562827,0.09668063,3099.2,3098.2,4.15873553]
[1767889563228,0.09668063,3099.2,3098.2,7.38641611]
[1767889563434,0.09668063,3099.2,3098.3,0.92489215]
[1767889563632,0.09668063,3099.2,3098.4,0.73802533]
[1767889564226,0.09668063,3099.2,3098.5,3.22736808]
[1767889564425,0.09668063,3099.2,3098.4,3.965458]
[1767889564724,0.93686499,3099.1,3098.4,0.73802533]
[1767889564913,0.93686499,3099.1,3098.3,3.22749972]
[1767889565111,0.93686499,3099.1,3098.4,3.22746197]
[1767889565326,0.93686499,3099.1,3098.3,4.27583293]
[1767889565818,0.80443717,3098.8,3098.2,3.85]
[1767889566013,0.09668063,3098.8,3098.2,3.85]
[1767889567133,0.09668063,3099.0,3098.2,3.85]
[1767889567442,0.09668063,3098.8,3098.2,3.85]
[1767889567642,0.76139882,3098.8,3098.2,3.85]
[1767889567842,0.09668063,3098.6,3098.2,3.85]
[1767889568054,0.09668063,3098.4,3097.6,4.67732629]
[1767889568253,0.09668063,3098.4,3097.4,4.07443212]
[1767889568254,0.09668063,3098.2,3097.4,4.07443212]
[1767889568544,0.09668063,3098.2,3097.5,3.22834102]
[1767889568747,0.09668063,3098.2,3097.4,0.846]
[1767889568920,3.32438164,3098.2,3097.4,4.07450295]
[1767889569118,3.9890354,3098.2,3097.4,0.846]
[1767889570245,3.9890354,3098.2,3097.2,0.98866749]
[1767889570246,0.09668063,3098.0,3097.2,0.98866749]
[1767889570551,0.09668063,3097.8,3097.0,0.846]
[1767889570754,0.09668063,3098.0,3097.1,1.02095575]
[1767889570953,0.09468064,3098.4,3097.1,1.02095575]
[1767889571251,0.09468064,3098.4,3097.3,0.98866749]
[1767889571460,0.09668063,3098.6,3097.3,1.02095366]
[1767889571623,0.09668063,3098.6,3097.3,0.98866749]
[1767889571818,0.09668063,3098.6,3097.5,0.98866749]
[1767889572164,0.09668063,3099.0,3097.7,0.98866749]
[1767889572443,0.09668063,3099.0,3097.9,0.98866749]
[1767889572652,0.09668063,3099.0,3098.1,0.98866749]
[1767889572869,0.09668063,3099.0,3098.3,0.98866749]
[1767889573235,3.22659776,3099.3,3098.3,0.98866749]
[1767889573432,0.09668063,3099.4,3098.3,0.98866749]
[1767889573433,0.09668063,3099.2,3098.3,0.98866749]
[1767889573617,0.09668063,3099.2,3098.5,0.98866749]
[1767889574017,0.002,3099.6,3098.5,0.98866749]
[1767889574221,0.002,3100.1,3099.2,0.98866749]
[1767889574824,0.002,3100.1,3099.4,0.98866749]
[1767889575660,0.002,3100.4,3099.3,6.45307004]
[1767889575661,0.002,3100.4,3099.9,0.98866749]
[1767889576152,0.002,3100.4,3099.9,1.17213424]
[1767889576744,0.002,3100.4,3100.1,0.98866749]
[1767889577956,0.002,3101.1,3100.4,0.98866749]
[1767889578127,0.002,3101.1,3100.5,0.98866749]
[1767889578322,0.002,3101.1,3100.5,1.17213424]
[1767889578748,0.002,3101.1,3100.6,3.22518222]
[1767889578937,0.002,3101.1,3100.6,4.21384971]
[1767889579749,0.002,3101.1,3100.6,0.98866749]
[1767889580957,0.002,3101.1,3100.6,4.21384267]
[1767889581545,0.002,3101.1,3100.6,0.98866749]
[1767889582225,0.002,3101.1,3100.0,0.98866749]
[1767889582448,0.002,3101.1,3100.2,0.846]
[1767889582636,0.002,3101.1,3100.4,0.98866749]
[1767889582845,0.002,3101.4,3100.8,3.2249742]
[1767889583058,0.002,3101.7,3100.9,0.846]
[1767889585059,0.002,3101.7,3101.0,3.2247662]
[1767889585385,0.002,3102.1,3101.1,0.98866749]
[1767889585545,0.002,3102.1,3101.3,0.98866749]
[1767889586976,0.002,3102.1,3101.4,4.21301778]
[1767889587178,0.002,3102.1,3101.4,0.98866749]
[1767889588492,0.002,3102.1,3101.4,1.83466749]
[1767889588772,0.002,3101.7,3101.4,1.83466749]
[1767889590354,0.002,3102.1,3101.6,0.98866749]
[1767889591076,0.002,3102.1,3101.4,0.846]
[1767889591567,0.09868063,3102.1,3101.4,0.846]
[1767889591951,0.09668063,3101.9,3101.0,0.98866749]
[1767889592147,0.81043717,3101.8,3100.9,0.001]
[1767889592349,0.09668063,3101.8,3101.1,3.22458947]
[1767889592666,0.09868063,3102.1,3101.2,3.22448511]
[1767889592983,0.002,3102.1,3101.3,0.03224454]
[1767889593154,0.002,3102.1,3101.3,3.22437525]
[1767889595174,0.002,3102.1,3101.2,0.845]
[1767889595380,0.09668063,3102.0,3101.2,0.845]
[1767889595596,0.81043717,3102.0,3101.2,0.845]
[1767889596078,0.09668063,3102.0,3101.2,0.845]
[1767889596285,0.76092823,3102.0,3101.3,0.99262046]
[1767889596786,0.002,3102.1,3101.3,1.024865]
[1767889596950,0.002,3102.1,3101.3,0.99262046]
[1767889597151,0.002,3102.1,3101.4,0.99262046]
[1767889600354,0.002,3102.1,3101.5,0.99262046]
[1767889600996,0.002,3102.1,3101.6,0.001]
[1767889601168,0.002,3101.8,3101.6,0.001]
[1767889601668,0.002,3101.8,3101.6,0.99362046]
[1767889602451,0.002,3101.8,3101.6,0.001]
[1767889603583,0.002,3101.8,3101.3,0.6030344]
[1767889603789,0.09668063,3101.7,3100.9,0.001]
[1767889604287,0.09668063,3101.5,3100.9,0.001]
[1767889605193,0.09668063,3101.5,3100.3,3.22547667]
[1767889605194,0.09668063,3101.3,3100.3,3.22547667]
[1767889605484,3.22455823,3101.2,3100.3,0.72961564]
[1767889605795,3.22455823,3101.2,3100.3,3.22548008]
[1767889605957,3.22455823,3101.2,3100.2,4.07055872]
[1767889606161,3.22455823,3101.2,3100.2,0.845]
[1767889606360,3.22455823,3101.2,3100.2,4.07056226]
[1767889606783,6.54579709,3101.2,3100.2,0.845]
[1767889606958,0.09668063,3101.0,3100.2,0.845]
[1767889607169,0.71275654,3100.9,3100.2,0.845]
[1767889607354,0.09668063,3101.0,3100.2,0.845]
[1767889607562,6.54636723,3101.0,3100.2,0.845]
[1767889607982,0.09668063,3100.8,3100.2,0.845]
[1767889608283,0.76098542,3100.8,3099.8,4.07098393]
[1767889608490,0.76098542,3100.8,3099.8,4.07093938]
[1767889608988,0.76098542,3100.8,3099.9,3.22589423]
[1767889609286,0.76098542,3100.8,3099.8,1.83762046]
[1767889609492,0.09668063,3100.6,3099.8,0.845]
[1767889609793,6.54710867,3100.6,3099.8,0.845]
[1767889609979,0.09668063,3100.4,3099.8,0.845]
[1767889611710,6.4509886,3100.3,3099.5,0.99262046]
[1767889611866,0.09668063,3100.1,3099.0,1.83762046]
[1767889612064,6.54766923,3100.3,3099.2,3.22663375]
[1767889612283,0.09668063,3100.1,3099.3,3.22653144]
[1767889612666,0.09668063,3100.1,3099.2,0.99262046]
[1767889613008,0.09668063,3100.1,3099.3,0.99262046]
[1767889613294,0.09668063,3100.1,3099.4,3.22642466]
[1767889613473,0.09668063,3100.1,3099.3,4.21905486]
[1767889613672,3.22529927,3100.5,3099.5,0.99262046]
[1767889613974,0.09668063,3100.4,3099.6,1.02488268]
[1767889614173,0.09668063,3100.4,3099.6,0.99262046]
[1767889614374,0.09668063,3100.2,3099.3,4.21914822]
[1767889614770,0.09668063,3100.2,3099.3,3.22652776]
[1767889614974,0.09668063,3100.2,3099.4,0.99262046]
[1767889615290,3.32190404,3100.6,3099.6,0.99262046]
[1767889615496,0.81043519,3100.4,3099.3,3.22652776]
[1767889615694,0.09668063,3100.2,3099.3,0.32265278]
[1767889615903,0.09668063,3100.2,3099.3,1.31527324]
[1767889616068,0.09668063,3100.2,3099.4,0.99262046]
[1767889616597,3.32211327,3100.4,3099.4,0.99262046]
[1767889617169,0.09668063,3100.4,3099.5,0.03226326]
[1767889617375,0.09668063,3100.4,3099.6,0.99262046]
[1767889617574,3.32210285,3100.4,3099.6,0.99262046]
[1767889617805,3.9865169,3100.4,3099.6,0.99262046]
[1767889618207,3.98653044,3100.4,3099.6,0.99262046]
[1767889620886,0.09668063,3100.0,3099.0,0.99262046]
[1767889621109,0.09668063,3100.0,3099.0,4.21940191]
[1767889621110,0.09668063,3099.8,3099.0,4.21940191]
[1767889621283,0.09668063,3099.8,3099.0,4.96403891]
[1767889621491,0.09668063,3100.0,3099.1,0.99262046]
[1767889621687,0.09668063,3100.2,3099.4,0.99262046]
[1767889621883,0.09668063,3100.2,3099.4,4.21903198]
[1767889622203,0.09668063,3100.2,3099.4,0.99262046]
[1767889622204,6.54792919,3100.2,3099.4,0.99262046]
[1767889622399,0.09668063,3100.0,3099.4,0.99262046]
[1767889622600,0.09668063,3100.0,3099.1,0.99749173]
[1767889623585,0.09668063,3100.0,3098.8,0.99749173]
[1767889623788,0.09668063,3099.8,3098.9,3.22693144]
[1767889624130,3.32256053,3100.0,3099.0,0.99749173]
[1767889624298,0.09668063,3099.8,3098.7,5.69349173]
[1767889624623,0.09668063,3099.8,3098.8,4.22454712]
[1767889624814,0.09668063,3099.8,3098.9,0.99749173]
[1767889624993,0.09668063,3099.8,3098.9,1.02976124]
[1767889625192,0.09668063,3099.8,3098.9,0.99749173]
[1767889625421,0.09668063,3099.6,3098.9,0.99749173]
[1767889625821,0.09668063,3099.4,3098.7,4.696]
[1767889626023,0.09668063,3099.6,3098.7,1.87576332]
[1767889626214,3.32293661,3099.6,3098.7,5.07060847]
[1767889626414,6.54919259,3099.6,3098.8,0.99749173]
[1767889626626,0.65491926,3099.5,3098.8,0.99749173]
[1767889627714,0.09668063,3099.4,3099.1,0.001]
[1767889627914,0.09668063,3099.4,3098.5,0.99749173]
[1767889628116,0.09668063,3099.4,3096.9,3.22893547]
[1767889628117,0.09668063,3098.9,3097.8,0.99749173]
[1767889628315,0.09668063,3098.5,3097.4,1.84349173]
[1767889628505,0.09668063,3098.5,3097.5,1.1818409]
[1767889628906,0.09668063,3098.5,3097.5,4.41024142]
[1767889629133,0.09668063,3098.3,3097.5,4.41019116]
[1767889629341,0.09668063,3098.7,3097.6,1.02977478]
[1767889629822,0.09668063,3098.5,3097.6,0.99749173]
[1767889630027,3.32433079,3098.3,3097.5,0.18434917]
[1767889630396,0.09668063,3098.3,3097.6,0.99749173]
[1767889630594,0.09668063,3098.7,3097.7,0.99749173]
[1767889630595,3.32384759,3098.7,3097.7,0.99749173]
[1767889630896,0.09668063,3098.7,3097.7,1.02977374]
[1767889631097,3.32384724,3098.7,3097.7,0.99749173]
[1767889631294,0.09668063,3098.5,3097.7,0.99749173]
[1767889632132,0.09668063,3098.5,3097.7,4.22567075]
[1767889632341,0.09668063,3098.5,3097.7,5.04207581]
[1767889633424,0.09668063,3098.5,3097.8,0.92779734]
[1767889633628,0.09668063,3098.7,3097.8,0.92779734]
[1767889634121,3.32386517,3098.7,3097.8,0.92779734]
[1767889634320,3.22698381,3098.9,3097.9,0.92779734]
[1767889634631,0.09668063,3098.8,3097.9,0.92779734]
[1767889635134,3.32354041,3099.0,3098.0,0.92779734]
[1767889635429,3.32313361,3099.4,3098.1,0.92779734]
[1767889635632,3.32313361,3099.4,3098.2,0.92779734]
[1767889636132,3.32313361,3099.4,3098.4,0.92779734]
[1767889636307,0.09668063,3099.4,3098.6,0.92779734]
[1767889636506,3.22632682,3099.5,3098.8,0.92779734]
[1767889636711,0.09668063,3099.4,3098.7,0.41551654]
[1767889637338,6.54920663,3099.6,3098.7,1.34331388]
[1767889637517,3.32294363,3099.6,3098.7,1.34331388]
[1767889637911,6.54920663,3099.6,3098.7,1.34331388]
[1767889638108,0.09668063,3099.4,3098.7,1.34331388]
[1767889638295,0.09668063,3099.4,3098.7,0.41551654]
[1767889638627,7.21379536,3099.6,3098.7,4.57045702]
[1767889638628,3.2263697,3099.5,3098.7,4.57045702]
[1767889638807,0.76126936,3099.6,3098.7,4.57045702]
[1767889638808,3.98754066,3099.6,3098.7,4.57045702]
[1767889639008,3.98754066,3099.6,3098.7,1.34331388]
[1767889640111,3.98754066,3099.6,3098.7,1.34431388]
[1767889640310,3.98754066,3099.6,3098.7,4.57146863]
[1767889640511,0.002,3099.5,3098.7,4.57146863]
[1767889641014,0.002,3099.5,3098.7,1.34431388]
[1767889641201,0.002,3099.5,3098.7,0.92879734]
[1767889641602,0.09668063,3099.4,3098.7,0.001]
[1767889641799,0.09668063,3099.2,3098.3,3.85]
[1767889642016,0.09668063,3099.2,3098.4,4.1552682]
[1767889642196,0.09668063,3099.2,3098.6,0.92779734]
[1767889642413,0.09668063,3099.4,3098.6,0.92779734]
[1767889643031,3.32320687,3099.4,3098.6,0.92779734]
[1767889643246,0.739756,3099.3,3098.7,0.92779734]
[1767889643461,0.09668063,3099.4,3098.4,0.92779734]
[1767889643759,6.54955354,3099.4,3098.4,4.15521297]
[1767889643903,3.32311155,3099.4,3098.5,3.22736725]
[1767889644433,3.32311155,3099.4,3098.5,4.15516459]
[1767889644632,0.09668063,3099.4,3098.6,0.92779734]
[1767889644938,3.22837218,3099.5,3098.7,0.92779734]
[1767889645348,0.09668063,3099.4,3098.3,4.77480128]
[1767889645635,0.09668063,3099.4,3098.4,3.22738513]
[1767889645805,0.09668063,3099.4,3098.4,4.15518247]
[1767889646332,0.09668063,3099.4,3098.4,8.00218641]
[1767889646632,0.09668063,3099.4,3098.5,0.92779734]
[1767889646829,0.09668063,3099.4,3098.5,1.40527747]
[1767889647036,3.22653502,3099.3,3098.5,4.63262086]
[1767889647927,3.32315396,3099.4,3098.6,0.92779734]
[1767889648740,0.09668063,3099.2,3098.4,3.84700394]
[1767889649033,3.3236517,3098.9,3098.4,3.84700394]
[1767889649216,3.97869423,3098.9,3098.4,3.84700394]
[1767889649614,0.75172316,3098.9,3098.4,3.84700394]
[1767889649824,3.97871583,3098.9,3098.4,3.84700394]
[1767889650031,3.97875164,3098.9,3098.4,3.84700394]
[1767889650220,0.09668063,3098.5,3097.7,3.22818886]
[1767889650542,0.09668063,3098.5,3097.8,3.22808412]
[1767889650713,0.09668063,3098.5,3097.7,0.92779734]
[1767889651037,0.09668063,3098.5,3097.7,4.15598277]
[1767889651221,0.09668063,3098.5,3097.8,0.92779734]
[1767889651740,0.09668063,3098.7,3098.0,0.92779734]
[1767889651939,0.09668063,3098.7,3098.1,0.96007518]
[1767889652136,0.09668063,3098.7,3098.1,0.92779734]
[1767889653403,0.09668063,3098.7,3098.1,0.96107518]
[1767889653604,0.09668063,3099.2,3098.3,0.9583918]
[1767889653835,0.09668063,3099.0,3098.3,0.9583918]
[1767889654235,0.09668063,3099.0,3098.4,0.99066652]
[1767889654436,3.32339184,3099.2,3098.2,3.22768058]
[1767889654641,0.09668063,3099.0,3098.2,3.22768058]
[1767889654842,0.02259752,3099.0,3098.3,0.52515174]
[1767889655144,0.02259752,3099.0,3098.3,0.49287598]
[1767889655331,0.02259752,3099.0,3098.5,0.9583918]
[1767889656047,0.02259752,3099.0,3098.3,1.45126778]
[1767889656237,0.02259752,3099.0,3098.3,4.18593055]
[1767889656548,0.02259752,3099.0,3098.4,0.9583918]
[1767889656933,0.09668063,3098.8,3098.1,4.92881398]
[1767889657118,0.09668063,3098.8,3098.1,1.70107925]
[1767889657446,3.32376701,3098.8,3098.1,1.70107925]
[1767889657659,0.09668063,3098.6,3098.1,0.001]
[1767889658018,0.09668063,3098.4,3098.1,0.001]
[1767889658219,0.09668063,3098.4,3097.2,0.9583918]
[1767889658220,0.09668063,3097.8,3097.2,0.9583918]
[1767889659834,0.09668063,3097.6,3097.0,0.9583918]
[1767889660618,0.09668063,3097.6,3097.0,4.18730275]
[1767889661041,0.09668063,3097.8,3097.0,4.18730275]
[1767889661042,0.09668063,3097.8,3097.1,3.22877823]
[1767889661231,0.09668063,3097.8,3097.0,4.18725429]
[1767889661419,0.09668063,3097.8,3097.2,3.22869768]
[1767889661747,0.94268063,3098.2,3097.4,0.9583918]
[1767889661927,4.17038187,3098.2,3097.4,0.9583918]
[1767889662121,0.09668063,3098.0,3097.4,0.9583918]
[1767889665165,0.41703819,3098.1,3097.6,0.9583918]
[1767889665459,3.32437173,3098.2,3097.6,0.9583918]
[1767889666126,0.09668063,3098.2,3097.6,0.9583918]
[1767889666437,6.55210797,3098.2,3097.3,0.9583918]
[1767889667258,6.55210797,3098.2,3097.7,0.001]
[1767889667823,0.09668063,3098.0,3097.7,0.001]
[1767889668128,3.98951631,3098.0,3097.1,4.07475454]
[1767889668326,7.93122769,3098.0,3097.1,0.846]
[1767889668543,0.09668063,3097.8,3097.1,0.846]